bitfinex-derivatives/quotes_ETHF0:USTF0_20250726
["timestamp","ask_amount","ask_price","bid_price","bid_amount"]
[1753545031971,3.24672,3738.3,3738.2,6.9232]
[1753545032365,2.7119,3738.3,3738.2,7.45804]
[1753545033170,2.7119,3738.3,3738.2,6.2296]
[1753545033365,2.7119,3738.3,3738.2,6.9232]
[1753545034071,2.7119,3738.3,3738.2,7.45804]
[1753545034468,3.24672,3738.3,3738.2,6.9232]
[1753545034667,3.24672,3738.3,3738.2,5.3354]
[1753545034867,3.27862,3738.3,3738.2,0.6785]
[1753545035071,3.27862,3738.3,3738.2,3.8863]
[1753545035271,3.27862,3738.3,3738.2,0.6785]
[1753545035671,3.27862,3738.3,3737.8,3.6464]
[1753545035672,1.61218,3737.9,3737.8,3.6464]
[1753545035969,3.22878,3737.9,3737.8,3.6464]
[1753545036470,3.22878,3737.9,3737.8,4.3249]
[1753545036670,3.22878,3737.9,3737.8,5.7957]
[1753545036869,3.22878,3737.9,3737.8,6.2296]
[1753545037977,3.22878,3737.9,3737.8,6.9232]
[1753545038276,3.22878,3737.9,3737.8,4.3249]
[1753545039478,3.22878,3737.9,3737.8,5.2191]
[1753545039779,3.25388,3737.9,3737.8,4.3249]
[1753545039973,3.22878,3737.9,3737.8,4.3249]
[1753545040479,3.25388,3737.9,3737.8,3.8863]
[1753545041374,1.60131,3737.7,3737.6,0.6785]
[1753545041572,5.0,3737.9,3737.2,0.6785]
[1753545041573,3.24307,3737.3,3737.2,0.6785]
[1753545041773,3.24307,3737.3,3736.7,5.5511]
[1753545041774,1.60144,3736.8,3736.7,5.5511]
[1753545041972,3.21804,3736.8,3736.7,6.9232]
[1753545042579,2.683,3736.8,3736.7,6.9232]
[1753545042776,3.21804,3736.8,3736.7,6.9232]
[1753545043478,2.683,3736.8,3736.7,7.45825]
[1753545043679,2.6428,3736.8,3736.7,7.45825]
[1753545043879,0.4296,3736.8,3736.7,7.45825]
[1753545044076,0.4296,3736.8,3736.7,6.9232]
[1753545044479,1.1299,3736.8,3736.7,6.9232]
[1753545044679,0.7003,3737.1,3736.7,4.6569]
[1753545044979,1.9425,3737.3,3737.2,1.98408]
[1753545045180,2.6428,3737.3,3737.2,7.45818]
[1753545045581,1.7265,3737.3,3737.2,6.9232]
[1753545045976,1.7265,3737.3,3737.2,7.45818]
[1753545046179,0.4296,3737.6,3737.5,1.5878]
[1753545046484,3.21794,3737.6,3737.5,3.0369]
[1753545046785,2.683,3737.6,3737.5,3.0369]
[1753545046979,2.683,3737.6,3737.5,4.25034]
[1753545047374,3.21792,3737.6,3737.5,4.25034]
[1753545047885,3.21792,3737.6,3737.5,3.7154]
[1753545048185,3.21792,3737.6,3737.5,1.1171]
[1753545048375,1.66482,3737.6,3737.5,3.0218]
[1753545048685,3.21792,3737.6,3737.5,3.7154]
[1753545050186,3.24302,3737.6,3737.5,0.6785]
[1753545050782,3.21792,3737.6,3737.5,0.6785]
[1753545051083,3.21792,3737.6,3737.5,1.1171]
[1753545051984,1.60137,3737.3,3737.2,3.2078]
[1753545052185,3.24307,3737.3,3737.2,3.2078]
[1753545052574,3.2431,3737.1,3737.0,0.6785]
[1753545052883,3.21804,3736.8,3736.7,3.8863]
[1753545054082,2.26154,3736.8,3736.7,6.9232]
[1753545054284,0.53504,3736.8,3736.7,6.9232]
[1753545054881,1.2353,3737.1,3736.9,4.25042]
[1753545055182,1.0323,3737.4,3737.2,3.7154]
[1753545055183,0.53497,3737.3,3737.2,3.7154]
[1753545055485,0.96457,3737.3,3737.2,3.7154]
[1753545055679,1.66487,3737.3,3737.2,3.7154]
[1753545055876,2.26147,3737.3,3737.2,3.7154]
[1753545056281,3.17777,3737.3,3737.2,3.7154]
[1753545056682,0.7003,3737.6,3737.3,0.53496]
[1753545056889,0.96452,3737.6,3737.5,3.7154]
[1753545057089,1.22243136,3737.6,3737.5,3.7154]
[1753545057289,0.68751136,3737.6,3737.5,4.25034]
[1753545057482,2.4875,3737.8,3737.7,1.4432]
[1753545057786,2.4288,3737.8,3737.7,3.6348]
[1753545057982,3.1178,3737.8,3737.7,3.6348]
[1753545058175,3.80440458,3737.8,3737.7,3.6348]
[1753545059187,3.1178,3737.8,3737.7,3.6348]
[1753545059688,1.7253,3737.8,3737.7,4.16971]
[1753545059894,1.7096,3737.8,3737.7,4.16971]
[1753545060187,0.53489,3737.9,3737.8,3.6348]
[1753545060488,0.53487,3738.0,3737.8,4.1697]
[1753545060689,3.10207,3738.0,3737.9,3.6348]
[1753545061686,0.55282,3738.3,3738.2,3.6348]
[1753545061886,1.23953195,3738.3,3738.2,3.6348]
[1753545062382,0.018,3738.3,3738.2,4.16964]
[1753545062780,0.55282,3738.3,3738.2,3.6348]
[1753545062986,0.018,3738.3,3738.2,4.16964]
[1753545063284,0.0098,3739.6,3738.2,5.0]
[1753545063588,2.94656023,3739.5,3739.4,1.4432]
[1753545063793,2.41191023,3739.5,3739.4,3.6348]
[1753545063985,3.26951023,3739.5,3739.4,3.6348]
[1753545064287,42.4383725,3739.9,3739.4,3.6348]
[1753545064288,0.2,3739.9,3739.8,0.4473]
[1753545064588,0.6286,3739.9,3739.8,3.6348]
[1753545064885,0.2,3739.9,3739.8,3.6348]
[1753545065187,0.2,3739.9,3739.8,4.16941]
[1753545065389,0.2,3739.9,3739.8,3.6348]
[1753545065989,0.7346,3739.9,3739.8,3.6348]
[1753545066198,0.2,3739.9,3739.8,3.6348]
[1753545067086,0.2,3739.9,3739.8,4.16941]
[1753545067482,3.2078,3741.0,3740.1,0.53457]
[1753545067687,2.84881,3741.2,3741.1,3.6348]
[1753545067884,3.52291,3741.2,3741.1,2.84628314]
[1753545068089,3.53787,3740.8,3740.7,3.6348]
[1753545068391,1.55507,3740.8,3740.7,3.6348]
[1753545068588,3.53787,3740.8,3740.7,3.6348]
[1753545068793,4.21197,3740.8,3740.7,2.9967]
[1753545068992,0.5524,3741.3,3741.2,2.7376]
[1753545069185,1.4748,3741.3,3741.2,6.8426]
[1753545069392,4.2299,3741.3,3741.2,1.1036]
[1753545069588,1.99125,3740.9,3740.8,6.2045]
[1753545069793,4.21195,3740.9,3740.8,0.6563]
[1753545070094,1.9913,3740.6,3740.5,2.9785]
[1753545070286,1.4568,3740.3,3740.0,3.2078]
[1753545070589,1.3362,3740.8,3740.0,3.2078]
[1753545070590,4.21207,3740.1,3740.0,3.2078]
[1753545070793,4.21207,3740.1,3740.0,5.3073]
[1753545071096,3.53797,3740.1,3740.0,6.8426]
[1753545071305,3.53797,3740.1,3740.0,3.6348]
[1753545071492,4.21207,3740.1,3740.0,2.0008]
[1753545071697,2.68053,3739.0,3738.9,3.6348]
[1753545071992,3.53813,3739.0,3738.9,3.6348]
[1753545072195,2.68053,3739.0,3738.9,3.6348]
[1753545072387,2.68053,3739.0,3738.9,2.0995]
[1753545072388,3.53813,3739.0,3738.9,2.0995]
[1753545072588,4.54446,3739.5,3737.9,1.5353]
[1753545072589,2.3144,3738.7,3737.9,1.5353]
[1753545072789,2.24444,3738.2,3738.1,2.9785]
[1753545072989,2.68064,3738.2,3738.1,2.9785]
[1753545073291,3.53824,3738.2,3738.1,0.6563]
[1753545073488,3.53827,3738.0,3737.9,3.6348]
[1753545073795,3.0034,3738.0,3737.9,3.6348]
[1753545073984,3.0034,3738.0,3737.8,0.19797477]
[1753545073985,3.2078,3738.7,3737.8,0.19797477]
[1753545074183,6.74597,3738.7,3738.6,3.6348]
[1753545074389,7.42007,3738.7,3738.6,0.6563]
[1753545074586,3.53823,3738.3,3738.2,3.6348]
[1753545075587,3.2078,3738.7,3738.2,1.4432]
[1753545075786,0.53478,3738.7,3738.6,3.6348]
[1753545075997,3.53818,3738.7,3738.6,3.6348]
[1753545076591,6.74598,3738.7,3738.6,3.6348]
[1753545076793,3.53818,3738.7,3738.6,3.6348]
[1753545078600,3.53818,3738.7,3738.6,2.9967]
[1753545079001,4.21228,3738.7,3738.6,2.9967]
[1753545079796,3.53818,3738.7,3738.6,3.6348]
[1753545082203,2.68058,3738.7,3738.6,3.6348]
[1753545082997,3.53818,3738.7,3738.6,3.6348]
[1753545083302,4.21228,3738.7,3738.6,3.6348]
[1753545083802,4.21228,3738.7,3738.6,2.9967]
[1753545084403,4.21228,3738.7,3738.6,3.6348]
[1753545084593,3.53818,3738.7,3738.6,3.6348]
[1753545087493,4.18558,3738.7,3738.6,3.6348]
[1753545087694,4.18558,3738.7,3738.6,2.9967]
[1753545088104,4.18558,3738.7,3738.6,3.6455]
[1753545088296,0.53478,3738.7,3738.6,3.6455]
[1753545088500,3.60448,3738.7,3738.6,3.6455]
[1753545088700,1.0435,3738.7,3738.6,4.18029]
[1753545089103,1.0435,3738.7,3738.6,3.6455]
[1753545089305,4.25187,3738.7,3738.6,3.6455]
[1753545089606,4.25187,3738.7,3738.6,2.0995]
[1753545089800,2.01281,3738.4,3738.3,3.6206]
[1753545089995,3.60451,3738.4,3738.3,3.6206]
[1753545090301,1.5784,3738.4,3738.3,3.6206]
[1753545090599,2.1772,3738.4,3738.3,4.15543]
[1753545090806,0.4447,3738.4,3738.3,4.15543]
[1753545091702,2.01281,3738.5,3738.4,2.1277]
[1753545091899,3.60451,3738.5,3738.4,3.6206]
[1753545092103,0.4447,3738.5,3738.4,3.6206]
[1753545092308,1.5917,3738.8,3738.4,3.6206]
[1753545092504,3.60447,3738.8,3738.7,1.4758]
[1753545092806,1.5784,3738.8,3738.7,3.6206]
[1753545093004,2.11316,3738.8,3738.7,3.6206]
[1753545093399,3.2078,3738.9,3738.8,2.67956]
[1753545093605,0.116,3739.4,3739.3,0.8441]
[1753545093809,0.116,3739.4,3739.3,3.6206]
[1753545094000,0.116,3739.4,3739.3,4.15529]
[1753545094206,0.116,3739.4,3739.3,3.6206]
[1753545094403,0.65067,3739.4,3739.3,3.6206]
[1753545094605,4.36777,3739.4,3739.3,2.1277]
[1753545094805,4.36777,3739.4,3739.3,1.5151]
[1753545095004,3.72037,3739.4,3739.3,3.6206]
[1753545095908,3.60437,3739.4,3739.3,3.6206]
[1753545096312,4.25177,3739.4,3739.3,2.1277]
[1753545097003,4.25177,3739.4,3739.3,2.9718]
[1753545097199,3.60437,3739.4,3739.3,3.6206]
[1753545097907,3.2078,3739.5,3739.3,3.6206]
[1753545098106,0.53467,3739.4,3739.3,3.6206]
[1753545098317,0.53472,3739.1,3738.5,3.2078]
[1753545098611,1.5917,3739.3,3739.0,1.4758]
[1753545098799,1.5917,3739.3,3738.9,0.53474]
[1753545098800,3.6044,3739.2,3739.1,3.6206]
[1753545099195,4.2518,3739.2,3739.1,2.9718]
[1753545099804,3.6044,3739.2,3739.1,3.6206]
[1753545100304,3.6044,3739.2,3738.8,0.8441]
[1753545100305,0.53474,3738.9,3738.8,0.8441]
[1753545100510,3.3594,3738.6,3738.5,1.7002]
[1753545100708,3.6045,3738.6,3738.5,3.6206]
[1753545100904,3.0697,3738.6,3738.5,3.6206]
[1753545102413,4.25189,3738.6,3738.5,2.1277]
[1753545103508,4.25189,3738.6,3738.5,2.9718]
[1753545103714,4.25189,3738.6,3738.5,3.6206]
[1753545111516,3.60449,3738.6,3738.5,3.6206]
[1753545120325,1.4936,3739.2,3738.6,2.1947]
[1753545120518,3.4753,3739.2,3739.1,3.6956]
[1753545120718,4.16080915,3739.2,3739.1,3.6956]
[1753545121225,4.83390915,3739.2,3739.1,3.6956]
[1753545126221,4.83390915,3739.2,3739.1,0.659]
[1753545126628,4.14844,3738.9,3738.8,1.0921]
[1753545126826,3.4754,3738.5,3738.4,3.6956]
[1753545127028,7.3563,3738.5,3738.4,3.6956]
[1753545127722,7.3563,3738.5,3738.4,2.8115]
[1753545127928,4.14854,3738.2,3738.1,0.659]
[1753545128330,4.83466513,3738.2,3738.1,1.0921]
[1753545128530,4.83466513,3738.2,3738.1,3.6956]
[1753545129832,3.30926513,3738.2,3738.1,3.6956]
[1753545130026,1.22096513,3738.2,3738.1,3.6956]
[1753545130227,2.70066513,3738.2,3738.1,3.6956]
[1753545130429,4.83466513,3738.2,3738.1,3.6956]
[1753545131434,4.16156513,3738.2,3738.1,3.6956]
[1753545132832,4.83466513,3738.2,3738.1,3.6956]
[1753545133029,4.83466513,3738.2,3738.1,3.044]
[1753545133233,4.83466513,3738.2,3738.1,1.7056]
[1753545133632,4.83466513,3738.2,3738.1,3.044]
[1753545133835,4.83466513,3738.2,3738.1,3.6956]
[1753545135437,4.83466513,3738.2,3738.1,1.0921]
[1753545136040,4.14859,3737.9,3737.8,0.85697477]
[1753545136237,3.29633,3737.6,3737.5,1.0921]
[1753545136440,4.14863,3737.6,3737.5,1.0921]
[1753545137332,4.14863,3737.6,3737.5,1.9762]
[1753545137533,3.47553,3737.6,3737.5,3.6956]
[1753545138338,3.47553,3737.6,3737.5,3.2413]
[1753545138339,4.14863,3737.6,3737.5,3.2413]
[1753545138535,4.14863,3737.6,3737.5,1.7056]
[1753545138732,0.95867,3737.3,3737.2,2.5823]
[1753545138939,1.447,3736.8,3736.7,1.5009]
[1753545139240,3.47564,3736.8,3736.7,3.6956]
[1753545139543,2.19964,3736.8,3736.7,3.6956]
[1753545140344,3.47564,3736.8,3736.7,3.6956]
[1753545140744,2.9406,3736.8,3736.7,3.6956]
[1753545141138,1.4936,3737.2,3737.1,1.0678]
[1753545141442,2.0883,3737.6,3737.5,1.5009]
[1753545141746,3.74272,3737.7,3737.5,3.6956]
[1753545141941,0.53493,3737.6,3737.5,1.5009]
[1753545142140,3.47553,3737.6,3737.5,1.5009]
[1753545142342,2.9406,3737.6,3737.5,1.5009]
[1753545142542,2.9406,3737.6,3737.5,3.6956]
[1753545143144,3.47553,3737.6,3737.5,3.6956]
[1753545147451,2.9406,3737.6,3737.5,3.6956]
[1753545147749,3.47553,3737.6,3737.5,3.6956]
[1753545148447,2.19953,3737.6,3737.5,3.6956]
[1753545148749,1.59093,3737.6,3737.5,3.6956]
[1753545150250,2.58373,3737.6,3737.5,3.6956]
[1753545150453,3.46503,3737.6,3737.5,3.6956]
[1753545150846,3.5776,3737.3,3737.2,1.0756]
[1753545151046,7.32037,3737.3,3737.2,1.0756]
[1753545151646,7.32037,3737.3,3737.2,2.5051]
[1753545152447,7.32037,3737.3,3737.2,3.5831]
[1753545154155,7.32037,3737.3,3737.2,0.6424]
[1753545154350,1.96523,3736.9,3736.8,2.9407]
[1753545154550,3.47323,3736.9,3736.8,2.9407]
[1753545155055,3.47323,3736.9,3736.8,3.5831]
[1753545155949,2.59193,3736.9,3736.8,3.5831]
[1753545156149,2.18423,3736.9,3736.8,3.5831]
[1753545156557,0.97243,3736.9,3736.8,3.5831]
[1753545157457,3.47323,3736.9,3736.8,3.5831]
[1753545158360,2.59193,3736.9,3736.8,3.5831]
[1753545158753,1.0641,3737.3,3737.2,1.4443]
[1753545159054,1.23157584,3737.3,3737.2,3.5831]
[1753545159254,0.69660584,3737.3,3737.2,3.5831]
[1753545159653,0.69660584,3737.3,3737.2,4.11809]
[1753545162950,3.2078,3737.5,3737.4,4.11806]
[1753545163150,1.4383725,3738.0,3737.8,1.4443]
[1753545163351,1.9732525,3738.0,3737.9,3.5831]
[1753545163561,0.53488,3738.0,3737.9,3.5831]
[1753545163755,1.59898,3738.0,3737.9,3.5831]
[1753545164762,0.97228,3738.0,3737.9,3.5831]
[1753545165061,0.53488,3738.0,3737.9,3.5831]
[1753545165250,0.53487,3738.1,3737.9,3.5831]
[1753545165455,0.53487,3738.1,3738.0,3.5831]
[1753545165656,2.18407,3738.1,3738.0,3.5831]
[1753545165861,3.47307,3738.1,3738.0,3.5831]
[1753545166055,4.11247,3738.1,3738.0,3.5831]
[1753545167255,2.9382,3738.1,3738.0,3.5831]
[1753545167462,3.47306,3738.1,3738.0,3.5831]
[1753545168162,1.4718,3738.1,3738.0,3.5831]
[1753545169253,3.8345,3738.3,3738.2,3.5831]
[1753545169456,4.36933,3738.3,3738.2,3.5831]
[1753545169655,3.74263,3738.3,3738.2,3.5831]
[1753545169852,3.2078,3738.3,3738.2,9.11794]
[1753545170560,0.6267,3738.9,3738.6,1.4443]
[1753545170756,1.0641,3738.8,3738.7,3.5831]
[1753545170951,1.59886,3738.8,3738.7,3.5831]
[1753545171157,1.0641,3738.8,3738.7,3.5831]
[1753545171358,1.59886,3738.8,3738.7,3.5831]
[1753545172660,3.47296,3738.8,3738.7,3.5831]
[1753545172860,7.32016,3738.8,3738.7,0.6424]
[1753545173061,1.965,3738.5,3738.4,2.496]
[1753545173263,4.1124,3738.5,3738.4,3.1384]
[1753545173464,4.1124,3738.5,3738.4,2.5051]
[1753545174462,4.1124,3738.5,3738.4,3.1384]
[1753545175054,3.473,3738.5,3738.4,3.5732]
[1753545175371,1.16147,3738.8,3738.7,1.4443]
[1753545175559,2.59167,3738.8,3738.7,3.5732]
[1753545175866,4.11237,3738.8,3738.7,2.5051]
[1753545176166,4.11237,3738.8,3738.7,1.6519]
[1753545176664,4.11237,3738.8,3738.7,2.5051]
[1753545178164,0.5348,3738.6,3738.4,0.6333]
[1753545178360,2.6121,3738.6,3738.5,1.4395]
[1753545178658,2.6121,3738.6,3738.5,3.0551]
[1753545178858,4.1629,3738.6,3738.5,2.4265]
[1753545179568,1.60539,3738.6,3738.5,3.485]
[1753545179961,2.59749,3738.6,3738.5,3.485]
[1753545180161,3.49149,3738.6,3738.5,3.485]
[1753545180362,4.16289,3738.6,3738.5,3.485]
[1753545180558,4.16289,3738.6,3738.5,2.4265]
[1753545182264,3.49149,3738.6,3738.5,3.485]
[1753545183568,2.0627,3738.9,3738.8,1.4169]
[1753545183774,3.49144,3738.9,3738.8,3.485]
[1753545185272,4.16284,3738.9,3738.8,3.485]
[1753545186168,4.16284,3738.9,3738.8,1.0518]
[1753545186974,4.16284,3738.9,3738.8,1.8578]
[1753545190172,4.16284,3738.9,3738.8,2.4265]
[1753545191975,1.94073,3738.3,3738.2,5.2533]
[1753545192173,3.49153,3738.3,3738.2,2.0455]
[1753545192375,3.49159,3737.9,3737.8,5.2533]
[1753545192677,3.49159,3737.9,3737.8,6.6928]
[1753545192877,3.49159,3737.9,3737.8,3.485]
[1753545193374,1.60549,3737.9,3737.8,3.485]
[1753545193582,0.53488,3738.0,3737.8,3.485]
[1753545193780,0.53488,3738.0,3737.9,3.485]
[1753545194468,1.60548,3738.0,3737.9,3.485]
[1753545195672,2.59758,3738.0,3737.9,3.485]
[1753545195881,3.49158,3738.0,3737.9,3.485]
[1753545196373,2.9567,3737.7,3737.6,3.0551]
[1753545196578,3.49162,3737.7,3737.6,3.485]
[1753545197574,3.49162,3737.7,3737.6,2.8564]
[1753545197775,3.49162,3737.7,3737.6,3.485]
[1753545197974,2.59762,3737.7,3737.6,3.485]
[1753545199480,3.49162,3737.7,3737.6,3.485]
[1753545200481,6.69937,3738.0,3737.9,3.485]
[1753545201580,7.37077,3738.0,3737.9,3.485]
[1753545204287,6.69937,3738.0,3737.9,3.485]
[1753545205485,7.37077,3738.0,3737.9,3.485]
[1753545205783,7.37077,3738.0,3737.9,2.4265]
[1753545205983,7.37077,3738.0,3737.9,1.0518]
[1753545206484,7.37077,3738.0,3737.9,3.0551]
[1753545207384,7.37077,3738.0,3737.9,3.485]
[1753545208583,4.16297,3738.0,3737.9,3.485]
[1753545208787,4.16297,3738.0,3737.9,3.0551]
[1753545208984,7.37077,3738.0,3737.9,1.6205]
[1753545209284,7.37077,3738.0,3737.9,0.6335]
[1753545209580,1.9652,3737.8,3737.7,1.5116]
[1753545209786,4.0587,3737.8,3737.7,0.6527]
[1753545211486,4.0587,3737.8,3737.7,2.4826]
[1753545211689,4.0587,3737.8,3737.7,3.4849]
[1753545211881,3.4541,3737.8,3737.7,3.4849]
[1753545212585,1.5985,3737.8,3737.7,3.4849]
[1753545212887,1.16267,3738.0,3737.9,1.3785]
[1753545213387,1.59847,3738.0,3737.9,1.3785]
[1753545213591,1.59847,3738.0,3737.9,3.4849]
[1753545215382,3.45407,3738.0,3737.9,3.4849]
[1753545217388,2.82627,3738.0,3737.9,3.4849]
[1753545217582,4.75456111,3738.0,3737.9,3.0774]
[1753545217782,4.75456111,3738.0,3737.9,2.4826]
[1753545217986,0.53492,3737.7,3737.6,0.8589]
[1753545218192,4.05872,3737.7,3737.6,0.6527]
[1753545219791,4.05872,3737.7,3737.6,2.4826]
[1753545219989,4.05872,3737.7,3737.6,3.4849]
[1753545220190,4.15038584,3737.7,3737.6,3.4849]
[1753545223793,4.75498584,3737.7,3737.6,3.4849]
[1753545224488,4.75498584,3737.7,3737.6,2.4826]
[1753545224689,4.75498584,3737.7,3737.6,0.6527]
[1753545225094,4.75498584,3737.7,3737.6,1.0671]
[1753545225392,4.75498584,3737.7,3737.6,3.0774]
[1753545225793,4.75498584,3737.7,3737.6,1.0671]
[1753545227798,4.75498584,3737.7,3737.6,0.6527]
[1753545228099,1.96525,3737.5,3737.4,1.5116]
[1753545228295,4.05875,3737.5,3737.4,1.5116]
[1753545228602,4.05875,3737.5,3737.4,0.6527]
[1753545229698,4.05875,3737.5,3737.4,2.4826]
[1753545230093,4.05875,3737.5,3737.4,3.4849]
[1753545231199,4.05875,3737.5,3737.4,2.4826]
[1753545231396,4.05875,3737.5,3737.4,1.6237]
[1753545231590,4.05875,3737.5,3737.4,1.0671]
[1753545231796,4.75553256,3737.5,3737.4,1.0671]
[1753545231992,3.5238,3737.3,3737.2,0.6527]
[1753545232194,4.05877,3737.3,3737.2,0.6527]
[1753545232500,4.75552945,3737.3,3737.2,2.4826]
[1753545232701,4.75552945,3737.3,3737.2,3.0774]
[1753545234501,0.53502,3737.0,3736.9,0.8589]
[1753545234804,4.05882,3737.0,3736.9,1.926]
[1753545235197,0.53514,3736.2,3736.1,1.3785]
[1753545235411,0.97094,3736.2,3736.1,3.4849]
[1753545235705,3.45434,3736.2,3736.1,3.4849]
[1753545236295,0.97094,3736.2,3736.1,3.4849]
[1753545236896,3.74286,3736.7,3736.6,3.4849]
[1753545237096,3.8356,3737.1,3736.6,3.4849]
[1753545237308,0.53506,3736.8,3736.7,3.3753]
[1753545237695,1.16002,3737.0,3736.9,0.5193]
[1753545237901,3.74281,3737.1,3736.9,2.5183]
[1753545238107,3.74281,3737.1,3737.0,3.3753]
[1753545238304,4.43874581,3737.1,3737.0,3.3753]
[1753545238602,3.7428,3737.1,3737.0,3.3753]
[1753545239807,0.535,3737.1,3737.0,3.3753]
[1753545240007,1.5786,3737.1,3737.0,3.3753]
[1753545240408,3.3237,3737.1,3737.0,3.3753]
[1753545241002,3.4146,3737.1,3736.6,1.4399]
[1753545241205,3.94966,3736.7,3736.6,1.5298]
[1753545241512,3.94966,3736.7,3736.6,2.3868]
[1753545242205,3.94966,3736.7,3736.6,1.5298]
[1753545242706,7.15746,3736.7,3736.6,2.3868]
[1753545243905,7.15746,3736.7,3736.6,2.9697]
[1753545244104,7.85310702,3736.7,3736.6,2.9697]
[1753545244306,7.22720702,3736.7,3736.6,3.3753]
[1753545244710,6.53156,3736.7,3736.6,3.3753]
[1753545245706,4.16146,3736.7,3736.6,3.3753]
[1753545245907,3.74286,3736.7,3736.6,3.3753]
[1753545246706,0.53506,3736.7,3736.6,3.3753]
[1753545246910,1.57859,3737.2,3737.1,1.3495]
[1753545247105,2.27390355,3737.2,3737.1,3.3753]
[1753545247305,2.54479,3737.2,3737.1,3.3753]
[1753545247502,3.32369,3737.2,3737.1,3.3753]
[1753545248814,6.53149,3737.2,3737.1,3.3753]
[1753545249006,3.32369,3737.2,3737.1,3.3753]
[1753545249505,7.15739,3737.2,3737.1,2.3868]
[1753545249812,7.15739,3737.2,3737.1,1.5298]
[1753545250015,7.15739,3737.2,3737.1,2.3868]
[1753545250209,7.15739,3737.2,3737.1,2.9697]
[1753545250510,1.91986,3736.7,3736.6,2.7924]
[1753545250811,3.32376,3736.7,3736.6,3.3753]
[1753545251210,2.54486,3736.7,3736.6,3.3753]
[1753545251513,4.16139,3737.2,3737.1,1.3495]
[1753545251713,4.78639,3737.2,3737.1,3.3753]
[1753545251911,4.16139,3737.2,3737.1,3.3753]
[1753545253015,4.78639,3737.2,3737.1,3.3753]
[1753545253312,3.74279,3737.2,3737.1,3.3753]
[1753545254815,6.53149,3737.2,3737.1,3.3753]
[1753545255314,5.35929,3737.2,3737.1,3.3753]
[1753545255716,5.75259,3737.2,3737.1,3.3753]
[1753545255914,3.32369,3737.2,3737.1,3.3753]
[1753545256310,2.15149,3737.2,3737.1,3.3753]
[1753545256712,0.7789,3737.5,3737.1,3.3753]
[1753545256713,0.53498,3737.3,3737.1,1.3495]
[1753545256912,0.53498,3737.3,3737.2,3.3753]
[1753545257414,3.2078,3737.6,3737.5,3.3753]
[1753545257717,3.90382736,3737.6,3737.5,3.3753]
[1753545258319,4.43875736,3737.6,3737.5,3.3753]
[1753545258912,7.22745736,3737.6,3737.5,3.3753]
[1753545259919,7.85335736,3737.6,3737.5,3.3753]
[1753545260714,7.22745736,3737.6,3737.5,3.3753]
[1753545261812,6.05525736,3737.6,3737.5,3.3753]
[1753545262009,3.90382736,3737.6,3737.5,3.3753]
[1753545262415,3.90382736,3737.6,3737.5,3.91025]
[1753545263016,3.2078,3737.6,3737.5,3.91025]
[1753545263519,3.74273,3737.6,3737.5,3.91025]
[1753545263716,3.2078,3737.6,3737.5,3.91025]
[1753545264118,3.74273,3737.6,3737.5,3.3753]
[1753545264621,0.8119,3738.1,3738.0,0.9439]
[1753545264819,3.96456,3738.1,3738.0,1.8009]
[1753545266912,3.96456,3738.1,3738.0,2.3868]
[1753545267112,0.53486,3738.1,3738.0,1.8009]
[1753545267317,1.91896,3738.1,3738.0,2.3885]
[1753545267618,2.56376,3738.1,3738.0,2.3885]
[1753545268323,2.0289,3738.1,3738.0,2.3885]
[1753545268721,3.12726,3738.1,3738.0,2.3885]
[1753545268922,3.96916,3738.1,3738.0,1.3763]
[1753545269123,3.96916,3738.1,3738.0,1.7833]
[1753545271318,3.96916,3738.1,3738.0,1.3763]
[1753545272126,3.96916,3738.1,3738.0,1.3073]
[1753545272325,3.96916,3738.1,3738.0,1.7143]
[1753545272723,3.96916,3738.1,3738.0,1.3073]
[1753545273426,3.96916,3738.1,3738.0,1.7143]
[1753545274726,3.9692,3737.8,3737.7,1.7262]
[1753545274932,3.96925,3737.5,3737.4,0.9382]
[1753545275132,3.96925,3737.5,3737.4,1.7262]
[1753545276323,3.12735,3737.5,3737.4,2.3138]
[1753545276528,1.6365,3738.0,3737.4,0.9382]
[1753545276732,1.91897,3738.0,3737.9,2.3138]
[1753545276935,1.52657,3738.0,3737.9,2.3138]
[1753545277333,1.91897,3738.0,3737.9,2.3138]
[1753545277738,2.56377,3738.0,3737.9,2.3138]
[1753545278634,3.40567,3738.0,3737.9,1.7262]
[1753545278834,3.96917,3738.0,3737.9,1.7262]
[1753545281039,0.53492,3737.7,3737.6,3.2078]
[1753545281245,2.92642,3737.7,3737.6,4.934]
[1753545282137,2.3915,3737.7,3737.6,5.46893]
[1753545282445,2.3915,3737.7,3737.6,4.934]
[1753545282844,2.92642,3737.7,3737.6,4.934]
[1753545283142,2.3915,3737.7,3737.6,4.934]
[1753545283433,2.92642,3737.7,3737.6,4.934]
[1753545283639,2.92642,3737.7,3737.6,3.739]
[1753545284336,2.92642,3737.7,3737.6,4.527]
[1753545284538,2.92642,3737.7,3737.6,4.934]
[1753545285441,2.92642,3737.7,3737.6,1.7262]
[1753545285635,2.92642,3737.7,3737.6,0.5312]
[1753545285835,1.33714,3738.2,3737.0,3.2078]
[1753545285836,2.92646,3737.4,3737.3,1.3192]
[1753545286341,2.92646,3737.4,3737.3,1.7262]
[1753545289536,0.9861,3737.4,3737.3,2.3138]
[1753545289744,0.9861,3737.4,3737.3,2.84877]
[1753545290042,1.52106,3737.4,3737.3,2.84877]
[1753545290738,1.52106,3737.4,3737.3,2.3138]
[1753545291237,2.0289,3737.4,3737.3,2.84877]